bitfinex-derivatives/quotes_SOLF0:USTF0_20241011
["timestamp","ask_amount","ask_price","bid_price","bid_amount"]
[1728645119612,10.77,141.71,141.67,3.5315]
[1728645119613,3.531,141.7,141.67,3.5315]
[1728645119914,3.531,141.7,141.67,14.3015]
[1728645122318,3.531,141.7,141.68,3.5313]
[1728645125020,3.5305,141.72,141.69,3.531]
[1728645125216,14.3005,141.72,141.67,10.77]
[1728645125815,10.77,141.72,141.69,3.531]
[1728645126017,3.5306,141.71,141.69,3.531]
[1728645129432,3.5306,141.71,141.68,3.5312]
[1728645137533,3.5306,141.71,141.69,3.5311]
[1728645137927,3.5306,141.71,141.66,10.77]
[1728645138629,3.5306,141.71,141.68,3.5312]
[1728645147141,3.5306,141.71,141.68,3.5311]
[1728645148136,3.5306,141.71,141.69,3.5311]
[1728645153440,3.5306,141.71,141.68,3.5312]
[1728645158244,10.77,141.72,141.66,12.1932]
[1728645158432,15.59,141.73,141.7,3.5308]
[1728645158742,10.77,141.73,141.7,3.5308]
[1728645158942,3.5303,141.72,141.7,3.5308]
[1728645159341,3.5303,141.72,141.7,6.97582699]
[1728645161652,14.3002,141.73,141.7,3.44502699]
[1728645161852,10.77,141.73,141.71,3.5306]
[1728645164551,14.3001,141.73,141.71,3.5306]
[1728645166649,10.77,141.73,141.71,3.5306]
[1728645171249,0.34,141.72,141.71,3.5306]
[1728645172754,0.68,141.72,141.71,3.5306]
[1728645174054,1.02,141.72,141.71,3.5306]
[1728645174353,3.5308,141.71,141.68,3.5312]
[1728645174754,11.79,141.72,141.68,3.5312]
[1728645174953,3.5308,141.7,141.68,7.00833414]
[1728645176258,11.79,141.72,141.68,7.00833414]
[1728645176460,3.5307,141.71,141.68,7.00833414]
[1728645178356,3.5307,141.71,141.69,3.5311]
[1728645180958,10.77,141.7,141.65,0.12502]
[1728645181159,14.3018,141.66,141.65,0.12502]
[1728645181961,3.5318,141.66,141.65,0.12502]
[1728645185369,3.8718,141.66,141.65,0.12502]
[1728645185868,0.34,141.66,141.65,0.12502]
[1728645190075,14.6418,141.66,141.65,0.12502]
[1728645190883,14.3018,141.66,141.65,0.12502]
[1728645192280,14.6418,141.66,141.65,0.12502]
[1728645192880,19.4418,141.66,141.65,0.12502]
[1728645198291,19.1018,141.66,141.65,0.12502]
[1728645199792,19.4418,141.66,141.65,0.12502]
[1728645200885,10.77,141.62,141.59,6.28362]
[1728645201193,10.77,141.62,141.59,1.48362]
[1728645201486,3.5323,141.65,141.6,10.77]
[1728645201790,14.3023,141.65,141.6,10.77]
[1728645201994,14.3023,141.65,141.61,3.5329]
[1728645202484,5.14,141.66,141.61,10.77]
[1728645202691,15.91,141.66,141.62,3.5327]
[1728645203287,3.5322,141.65,141.62,3.5327]
[1728645203800,3.5322,141.65,141.61,14.303]
[1728645204089,14.3022,141.65,141.61,10.77]
[1728645205486,14.3022,141.65,141.62,3.5328]
[1728645209195,3.5324,141.64,141.61,3.533]
[1728645209592,14.3024,141.64,141.61,3.533]
[1728645216592,3.5327,141.63,141.6,8.4531]
[1728645217593,3.5329,141.62,141.6,4.92]
[1728645219692,3.5329,141.62,141.59,5.01702]
[1728645224205,3.5329,141.62,141.59,15.78702]
[1728645226601,3.5327,141.63,141.6,3.5331]
[1728645227603,3.5327,141.63,141.61,3.533]
[1728645228702,0.34,141.62,141.61,3.533]
[1728645231599,77.69940179,141.67,141.59,12.25362]
[1728645231800,3.5324,141.64,141.61,3.5328]
[1728645232000,3.5324,141.64,141.61,8.4328]
[1728645234808,10.77,141.64,141.61,4.9]
[1728645235116,3.5326,141.63,141.61,4.9]
[1728645235611,0.34,141.62,141.61,4.9]
[1728645236113,0.34,141.62,141.61,8.4331]
[1728645237510,0.34,141.62,141.61,4.9]
[1728645239207,0.34,141.62,141.6,3.5332]
[1728645240203,0.34,141.62,141.61,3.5331]
[1728645241007,3.5325,141.64,141.61,3.5331]
[1728645250316,10.77,141.65,141.61,3.5331]
[1728645250525,3.5326,141.63,141.6,3.5332]
[1728645254622,10.77,141.62,141.59,0.12502]
[1728645255325,3.5331,141.61,141.59,3.65852]
[1728645261043,10.77,141.62,141.59,0.12502]
[1728645261336,14.3029,141.62,141.6,3.5333]
[1728645261536,3.5329,141.62,141.6,3.5333]
[1728645266237,10.77,141.64,141.6,3.5333]
[1728645266541,3.5327,141.63,141.6,3.5333]
[1728645269443,3.533,141.62,141.59,3.65862]
[1728645270238,3.5331,141.61,141.59,3.65862]
[1728645270545,3.5331,141.61,141.59,0.12502]
[1728645270946,10.77,141.63,141.59,0.12502]
[1728645271142,3.533,141.62,141.59,3.65842]
[1728645279947,10.77,141.63,141.59,3.65842]
[1728645280149,3.5331,141.61,141.59,3.65842]
[1728645288345,3.533,141.62,141.59,3.65842]
[1728645288551,3.533,141.62,141.6,3.5333]
[1728645289249,14.3025,141.64,141.6,3.5333]
[1728645289652,14.3025,141.64,141.59,0.12502]
[1728645289855,14.3025,141.64,141.59,3.65842]
[1728645290054,14.3025,141.64,141.59,0.12502]
[1728645291353,14.3025,141.64,141.59,4.96502]
[1728645291554,14.3025,141.64,141.61,3.533]
[1728645292158,9.854,141.65,141.59,4.96502]
[1728645292357,1.2966,141.66,141.61,10.77]
[1728645292559,10.77,141.65,141.61,10.77]
[1728645292856,10.77,141.65,141.62,3.5326]
[1728645293254,10.77,141.64,141.62,3.5326]
[1728645293450,10.77,141.64,141.61,3.533]
[1728645299660,3.5319,141.66,141.63,3.5324]
[1728645299864,14.3019,141.66,141.63,3.5324]
[1728645301469,14.3019,141.66,141.6,13.3732]
[1728645301661,14.3019,141.66,141.62,3.5327]
[1728645301967,14.3019,141.66,141.6,13.3732]
[1728645302362,1.4176,141.7,141.63,10.77]
[1728645302666,10.77,141.69,141.64,10.77]
[1728645302962,10.77,141.7,141.65,15.61]
[1728645303164,10.77,141.7,141.67,3.5315]
[1728645303773,10.77,141.7,141.65,15.61]
[1728645303962,10.77,141.7,141.66,3.61090386]
[1728645304465,10.77,141.7,141.67,3.5315]
[1728645306967,10.89502,141.71,141.68,3.5313]
[1728645307477,14.42562,141.71,141.68,3.5313]
[1728645308376,10.89502,141.71,141.68,3.5313]
[1728645309266,10.77,141.7,141.67,3.5315]
[1728645310671,0.12502,141.71,141.67,3.5314]
[1728645310976,0.12502,141.71,141.66,14.38090386]
[1728645311369,3.65562,141.71,141.68,3.5313]
[1728645311874,0.12502,141.71,141.66,14.38090386]
[1728645312662,14.42562,141.71,141.68,3.5312]
[1728645314478,14.42562,141.71,141.67,3.5315]
[1728645316072,14.42562,141.71,141.66,14.38090386]
[1728645316275,14.42562,141.71,141.68,3.5313]
[1728645316479,3.65562,141.71,141.68,3.5313]
[1728645316680,14.42562,141.71,141.68,3.5313]
[1728645317882,3.65562,141.71,141.68,3.5313]
[1728645318075,14.42562,141.71,141.68,3.5313]
[1728645318877,0.12502,141.71,141.68,10.77]
[1728645319179,0.12502,141.71,141.7,3.5308]
[1728645323376,10.89502,141.71,141.59,0.12502]
[1728645323568,14.3025,141.64,141.59,4.98502]
[1728645323978,14.3025,141.64,141.59,8.51852]
[1728645323979,10.77,141.64,141.59,8.51852]
[1728645324281,10.77,141.63,141.59,4.98502]
[1728645324674,3.533,141.62,141.59,4.98502]
[1728645325379,10.77,141.63,141.59,4.98502]
[1728645325581,3.5329,141.62,141.59,15.75502]
[1728645325781,10.77,141.64,141.59,19.28852]
[1728645326278,3.5326,141.63,141.6,15.63]
[1728645329578,3.5326,141.63,141.6,4.86]
[1728645332486,10.77,141.65,141.6,4.86]
[1728645332682,3.5324,141.64,141.6,19.1631]
[1728645333283,3.5319,141.66,141.62,3.5327]
[1728645333489,10.77,141.66,141.62,3.5327]
[1728645334284,3.5322,141.65,141.62,3.5327]
[1728645334485,3.5322,141.65,141.61,14.303]
[1728645335186,3.5322,141.65,141.61,3.533]
[1728645335387,10.77,141.66,141.61,3.533]
[1728645335685,3.5323,141.64,141.61,3.533]
[1728645337381,14.3023,141.64,141.61,3.533]
[1728645337587,14.3023,141.64,141.6,19.1632]
[1728645338086,10.77,141.64,141.6,19.1632]
[1728645338286,3.5326,141.63,141.6,19.1632]
[1728645338592,3.5326,141.63,141.6,8.3932]
[1728645338981,3.5328,141.62,141.6,8.3932]
[1728645340183,3.5328,141.62,141.6,8.3933]
[1728645342589,3.5328,141.62,141.6,19.1633]
[1728645342890,3.5325,141.64,141.61,14.3031]
[1728645344090,3.5322,141.65,141.61,10.77]
[1728645344888,3.5322,141.65,141.62,10.77]
[1728645346393,3.5322,141.65,141.63,3.5324]
[1728645346896,3.5322,141.65,141.63,8.4924]
[1728645347395,10.77,141.67,141.63,8.4924]
[1728645347593,3.532,141.66,141.63,8.4924]
[1728645348794,14.302,141.66,141.63,8.4924]
[1728645354404,3.5317,141.67,141.64,3.5323]
[1728645354700,14.3017,141.67,141.64,3.5323]
[1728645355095,10.77,141.67,141.64,3.5323]
[1728645355692,14.3016,141.67,141.64,3.5323]
[1728645355898,10.77,141.67,141.65,3.532]
[1728645356098,10.77,141.67,141.63,4.96]
[1728645356299,14.3017,141.67,141.63,4.96]
[1728645356508,14.3017,141.67,141.64,3.5322]
[1728645360709,3.5322,141.65,141.64,4.96]
[1728645361105,10.77,141.67,141.64,4.96]
[1728645361309,14.3019,141.66,141.63,8.4925]
[1728645361508,10.77,141.66,141.63,4.96]
[1728645362406,3.5322,141.65,141.63,4.96]
[1728645362606,10.77,141.64,141.6,4.2332]
[1728645362803,10.77,141.64,141.61,4.96]
[1728645363211,14.3026,141.64,141.61,8.493]
[1728645365512,3.5326,141.64,141.61,8.493]
[1728645367216,3.5326,141.64,141.61,4.96]
[1728645367413,3.5326,141.64,141.62,3.5328]
[1728645384131,3.5326,141.64,141.61,4.96]
[1728645384132,4.9,141.68,141.61,4.96]
[1728645384331,3.532,141.66,141.63,10.77]
[1728645385229,10.77,141.68,141.63,10.77]
[1728645385425,14.3017,141.67,141.64,3.5322]
[1728645391729,3.5317,141.67,141.64,3.5322]
[1728645391935,10.77,141.66,141.64,3.5322]
[1728645392235,3.5317,141.67,141.64,3.5322]
[1728645392434,14.3017,141.67,141.64,3.5322]
[1728645394933,53.81526547,141.71,141.65,10.77]
[1728645395127,10.77,141.7,141.66,10.77]
[1728645395430,10.77,141.7,141.66,14.28372173]
[1728645395637,53.81526547,141.71,141.69,3.531]
[1728645395638,0.12502,141.71,141.69,3.531]
[1728645398939,0.12502,141.71,141.7,3.5308]
[1728645400036,10.89502,141.71,141.67,4.9]
[1728645400237,3.5309,141.7,141.67,8.4314]
[1728645401140,14.42572,141.71,141.67,8.4314]
[1728645401940,14.42572,141.71,141.67,19.2014]
[1728645402844,14.42572,141.71,141.68,3.5313]
[1728645403739,0.12502,141.71,141.69,10.77]
[1728645404243,0.12502,141.71,141.69,14.3009]
[1728645418059,10.89502,141.71,141.6,4.1469]
[1728645418351,3.5315,141.68,141.65,14.3019]
[1728645418547,3.5315,141.68,141.65,19.1819]
[1728645419152,3.5315,141.68,141.66,3.5318]
[1728645420757,10.77,141.7,141.66,3.5318]
[1728645420949,3.5313,141.69,141.66,3.5318]
[1728645423355,0.12502,141.71,141.67,14.3015]
[1728645423548,0.12502,141.71,141.67,10.77]
[1728645424150,0.12502,141.71,141.68,10.77]
[1728645424751,3.65562,141.71,141.68,14.3012]
[1728645427258,3.65562,141.71,141.68,3.5312]
[1728645437171,0.12502,141.71,141.67,10.77]
[1728645437475,0.12502,141.71,141.69,3.531]
[1728645440282,0.12502,141.71,141.7,3.5308]
[1728645445782,0.12502,141.71,141.7,14.3008]
[1728645446888,3.5296,141.75,141.72,3.5301]
[1728645447076,3.5296,141.75,141.72,14.3001]
[1728645450481,3.5296,141.75,141.73,3.5301]
[1728645450681,3.5296,141.75,141.72,10.77]
[1728645451292,3.5296,141.75,141.72,14.3002]
[1728645451493,3.5296,141.75,141.72,3.5302]
[1728645454195,14.2999,141.74,141.72,3.5302]
[1728645454388,10.77,141.74,141.71,8.3905]
[1728645454789,10.77,141.73,141.68,3.5312]
[1728645454989,10.77,141.73,141.69,4.86]
[1728645455693,3.5305,141.72,141.69,8.3909]
[1728645456098,3.5305,141.72,141.7,3.5308]
[1728645461895,10.77,141.73,141.7,3.5308]
[1728645462102,14.3002,141.73,141.7,3.5308]
[1728645462394,3.5302,141.73,141.7,3.5308]
[1728645466901,10.77,141.74,141.71,3.5304]
[1728645466902,3.5299,141.74,141.71,3.5304]
[1728645473803,3.5303,141.72,141.69,19.1609]
[1728645474010,10.77,141.75,141.69,15.63]
[1728645474702,3.5299,141.74,141.71,14.3004]
[1728645474910,10.77,141.75,141.71,10.77]
[1728645475307,3.5297,141.75,141.72,3.5301]
[1728645480716,14.2999,141.74,141.72,3.5301]
[1728645481113,14.2999,141.74,141.71,3.5305]
[1728645482113,3.5302,141.73,141.7,3.5306]
[1728645483218,3.5302,141.73,141.71,3.5305]
[1728645489123,14.3,141.74,141.71,3.5305]
[1728645491322,10.77,141.74,141.7,4.84]
[1728645491518,3.5302,141.73,141.7,8.3707]
[1728645492126,10.77,141.73,141.68,10.77]
[1728645492331,3.5308,141.71,141.68,8.3713]
[1728645492826,14.3008,141.71,141.68,8.3713]
[1728645495028,14.3008,141.71,141.68,3.5313]
[1728645495231,14.3008,141.71,141.67,84.39466131]
[1728645495529,3.5308,141.7,141.67,84.39466131]
[1728645497130,3.5308,141.7,141.67,79.55466131]
[1728645497429,3.5308,141.7,141.67,84.39466131]
[1728645498820,3.5308,141.7,141.67,87.92626131]
[1728645501620,3.5317,141.67,141.64,3.5321]
[1728645501924,10.77,141.68,141.63,13.5309]
[1728645502121,10.77,141.68,141.63,18.3509]
[1728645502624,3.5318,141.67,141.63,21.8834]
[1728645503025,3.5318,141.67,141.63,17.0634]
[1728645503731,3.5318,141.66,141.63,17.0634]
[1728645511634,4.82,141.72,141.65,14.42712]
[1728645511839,10.77,141.69,141.65,14.42712]
[1728645513534,3.5316,141.67,141.65,14.42712]
[1728645515140,3.5312,141.68,141.65,14.42662]
[1728645515436,10.77,141.69,141.65,14.42662]
[1728645515839,68.96228637,141.72,141.67,10.77]
[1728645516034,15.59,141.71,141.67,14.3012]
[1728645516238,3.5307,141.69,141.67,14.3012]
[1728645516639,15.59,141.71,141.67,14.3012]
[1728645516835,10.77,141.71,141.67,14.3012]
[1728645517142,3.5306,141.7,141.67,14.3012]
[1728645519044,3.5306,141.7,141.67,3.5312]
[1728645520446,14.3006,141.7,141.67,3.5312]
[1728645521942,3.5307,141.69,141.67,3.5312]
[1728645522341,3.5307,141.69,141.66,14.3013]
[1728645524454,14.3007,141.69,141.66,3.5313]
[1728645524754,14.3011,141.68,141.65,8.47662]
[1728645525546,3.5315,141.66,141.65,0.12502]
[1728645527439,14.3015,141.66,141.65,0.12502]
[1728645528352,19.1215,141.66,141.65,0.12502]
[1728645529145,15.59,141.66,141.59,0.12502]
[1728645529451,10.77,141.63,141.59,10.89502]
[1728645529849,3.5326,141.62,141.59,10.89502]
[1728645530644,3.5326,141.62,141.59,14.42822]
[1728645531443,4.82,141.66,141.59,0.12502]
[1728645531649,10.77,141.62,141.59,0.12502]
[1728645532247,3.533,141.6,141.59,0.12502]
[1728645542155,14.303,141.6,141.59,0.12502]
[1728645542353,3.533,141.6,141.59,0.12502]
[1728645542560,14.303,141.6,141.59,0.12502]
[1728645546556,3.5325,141.62,141.59,3.65822]
[1728645546764,10.77,141.61,141.59,3.65822]
[1728645546962,3.5325,141.62,141.59,14.42822]
[1728645547163,76.42288378,141.68,141.59,14.42822]
[1728645547164,3.5321,141.64,141.61,3.5326]
[1728645547755,1.3513,141.68,141.61,10.77]
[1728645547965,14.3016,141.66,141.63,3.5321]
[1728645548359,3.5317,141.65,141.62,14.3023]
[1728645548555,10.77,141.64,141.61,4.82]
[1728645549364,14.3021,141.64,141.61,4.82]
[1728645549562,14.3021,141.64,141.61,8.3526]
[1728645555165,3.5321,141.64,141.61,19.1226]
[1728645558471,3.5321,141.64,141.61,8.3526]
[1728645558472,14.3021,141.64,141.61,8.3526]
[1728645558971,3.5323,141.63,141.61,8.3526]
[1728645573983,3.5321,141.64,141.62,3.5325]
[1728645577483,14.3018,141.65,141.62,3.5325]
[1728645577679,3.5318,141.65,141.63,3.5322]
[1728645578182,3.5314,141.67,141.64,14.3018]
[1728645578883,3.5314,141.67,141.64,17.84897716]
[1728645580990,10.77,141.68,141.64,17.84897716]
[1728645581180,3.5315,141.66,141.64,17.84897716]
[1728645583685,1.4309,141.69,141.64,14.31717716]
[1728645583885,12.2009,141.69,141.65,10.77]
[1728645585088,3.5311,141.68,141.65,14.3016]
[1728645585288,3.5311,141.68,141.65,3.5316]
[1728645587388,14.3011,141.68,141.65,3.5316]
[1728645593702,3.5314,141.67,141.64,8.3318]
[1728645594287,3.5314,141.67,141.64,11.90885316]
[1728645594596,3.5314,141.67,141.64,8.3318]
[1728645597601,3.5314,141.67,141.64,19.1018]
[1728645598300,3.5314,141.67,141.65,3.5317]
[1728645602807,3.5314,141.67,141.64,4.8]
[1728645603108,3.5314,141.67,141.64,19.1019]
[1728645604711,3.5314,141.67,141.65,10.77]
[1728645605800,3.5314,141.67,141.65,14.3017]
[1728645606207,3.5314,141.67,141.65,3.5317]
[1728645606609,6.25282,141.71,141.64,15.57]
[1728645606913,10.77,141.69,141.66,3.5314]
[1728645607209,10.77,141.69,141.64,15.57]
[1728645607512,10.77,141.69,141.65,3.5316]
[1728645608611,3.531,141.68,141.65,3.5316]
[1728645610311,3.65532,141.71,141.67,10.77]
[1728645610605,0.12502,141.71,141.69,10.77]
[1728645611516,0.12502,141.71,141.69,14.3006]
[1728645612308,0.12502,141.71,141.7,3.5305]
[1728645613410,13.57562,141.77,141.73,3.5297]
[1728645613712,10.77,141.76,141.72,10.77]
[1728645614214,2.80562,141.77,141.72,10.77]
[1728645614413,10.77,141.76,141.72,10.77]
[1728645615311,3.5292,141.75,141.72,14.2998]
[1728645616014,14.2991,141.76,141.72,14.2998]
[1728645616316,10.77,141.76,141.72,14.2998]
[1728645616716,3.5292,141.75,141.72,14.2998]
[1728645618618,3.5292,141.75,141.73,3.5297]
[1728645619011,3.5292,141.75,141.72,10.77]
[1728645619206,3.5292,141.75,141.72,14.2999]
[1728645623720,3.5292,141.75,141.72,3.5299]
[1728645629619,3.5292,141.75,141.72,14.2999]
[1728645632230,3.5292,141.75,141.72,10.77]
[1728645632527,3.5292,141.75,141.73,14.2996]
[1728645634427,3.5291,141.76,141.73,14.2996]
[1728645634825,0.12502,141.77,141.75,10.77]
[1728645635027,0.12502,141.77,141.76,15.55]
[1728645635219,113.02798514,141.83,141.76,15.55]
[1728645635425,3.5275,141.82,141.79,10.77]
[1728645636131,3.5275,141.82,141.79,14.2982]
[1728645636331,116.55528514,141.83,141.8,10.77]
[1728645636521,116.55528514,141.83,141.8,14.2978]
[1728645636724,113.02798514,141.83,141.8,10.77]
[1728645636924,113.02798514,141.83,141.79,15.55]
[1728645637430,3.5277,141.82,141.79,19.0781]
[1728645637833,113.02798514,141.83,141.79,15.55]
[1728645638033,3.5276,141.82,141.79,15.55]
[1728645638526,3.528,141.81,141.79,4.78]
[1728645638833,3.528,141.81,141.78,3.5282]
[1728645639431,3.528,141.8,141.77,20.4094]
[1728645639929,3.5276,141.82,141.79,14.2981]
[1728645640633,0.12502,141.83,141.79,10.77]
[1728645640829,3.65242,141.83,141.8,3.5279]
[1728645644930,3.65242,141.83,141.82,3.5275]
[1728645644931,0.12502,141.83,141.82,3.5275]
[1728645645242,0.12502,141.83,141.81,10.77]
[1728645645629,0.12502,141.83,141.81,14.2976]
[1728645647038,0.12502,141.83,141.81,3.5276]
[1728645647239,0.12502,141.83,141.8,19.0779]
[1728645647738,3.65232,141.83,141.8,19.0779]
[1728645655240,3.5275,141.82,141.8,19.0779]
[1728645656836,10.89502,141.83,141.78,1.3737]
[1728645657037,3.5279,141.81,141.77,16.9008]
[1728645657446,3.5279,141.81,141.78,3.5284]
[1728645658943,10.77,141.79,141.73,4.8]
[1728645659239,10.77,141.79,141.72,14.2998]
[1728645659240,10.77,141.75,141.71,10.89502]
[1728645659437,10.77,141.75,141.71,4.92502]
[1728645659632,10.77,141.74,141.71,4.92502]
[1728645659838,10.77,141.74,141.71,0.12502]
[1728645660040,3.5299,141.73,141.71,0.12502]
[1728645660933,3.53,141.72,141.71,0.12502]
[1728645661142,14.3,141.72,141.71,0.12502]
[1728645661442,4.8,141.74,141.71,0.12502]
[1728645661443,3.5299,141.73,141.71,0.12502]
[1728645662442,4.8,141.74,141.71,0.12502]
[1728645662839,15.57,141.74,141.71,0.12502]
[1728645663035,3.5299,141.73,141.71,0.12502]
[1728645663946,3.53,141.72,141.71,0.12502]
[1728645664334,14.3,141.72,141.71,0.12502]
[1728645667144,3.53,141.72,141.71,0.12502]
[1728645667345,10.77,141.72,141.65,0.12502]
[1728645667547,3.5312,141.68,141.65,0.12502]
[1728645668448,3.5312,141.68,141.65,3.65652]
[1728645669150,10.77,141.7,141.65,0.12502]
[1728645669842,10.77,141.68,141.65,0.12502]
[1728645670048,10.77,141.67,141.65,0.12502]
[1728645670247,4.8,141.68,141.6,67.50438441]
[1728645670248,10.77,141.66,141.6,73.47438441]
[1728645670550,10.77,141.66,141.61,10.77]
[1728645670947,3.5321,141.64,141.61,14.3026]
[1728645672139,3.5321,141.64,141.61,3.5326]
[1728645674453,3.5318,141.65,141.62,3.5325]
[1728645682145,1.3453,141.69,141.63,10.77]
[1728645682351,14.3012,141.67,141.64,3.5319]
[1728645683851,10.77,141.66,141.64,3.5319]
[1728645684257,10.77,141.65,141.62,4.92]
[1728645684459,4.92,141.68,141.62,15.69]
[1728645684659,10.77,141.67,141.62,15.69]
[1728645685561,14.3013,141.67,141.64,3.5318]
[1728645691068,10.77,141.67,141.65,3.5317]
[1728645691769,14.3011,141.68,141.66,3.5315]
[1728645692163,10.77,141.68,141.66,3.5315]
[1728645692762,2.8066,141.73,141.66,10.77]
[1728645692957,10.77,141.73,141.69,10.77]
[1728645693267,10.77,141.73,141.7,3.5305]
[1728645694468,14.2997,141.73,141.7,3.5305]
[1728645696761,14.2996,141.74,141.7,14.3005]
[1728645697159,80.05590239,141.75,141.72,3.53]
[1728645697359,76.52650239,141.75,141.71,10.77]
[1728645697966,3.5295,141.74,141.71,14.3001]
[1728645698661,80.05580239,141.75,141.72,3.5298]
[1728645700564,87.29650239,141.75,141.7,10.77]
[1728645700763,3.5295,141.74,141.71,3.5301]
[1728645705566,3.5295,141.74,141.71,14.3001]
[1728645705771,3.529,141.76,141.73,3.5295]
[1728645707965,0.12502,141.77,141.75,3.5291]
[1728645708173,0.12502,141.77,141.75,10.77]
[1728645708672,0.12502,141.77,141.76,3.529]
[1728645708860,0.12502,141.77,141.76,14.299]
[1728645710067,3.5279,141.81,141.76,10.77]
[1728645710367,3.5279,141.81,141.77,3.5285]
[1728645710563,10.77,141.82,141.77,3.5285]
[1728645710771,3.528,141.8,141.77,3.5285]
[1728645711075,10.77,141.79,141.75,14.31643931]
[1728645711259,10.77,141.76,141.72,4.2723]
[1728645711970,3.5294,141.75,141.72,7.8022]
[1728645712566,14.2991,141.76,141.73,3.5296]
[1728645714172,3.5291,141.76,141.73,3.5296]
[1728645715068,15.69,141.78,141.73,10.77]
[1728645715271,15.69,141.78,141.74,3.5293]
[1728645715272,3.5289,141.77,141.74,3.5293]
[1728645720068,3.5289,141.77,141.75,3.5292]
[1728645721085,3.529,141.76,141.72,15.0423]
[1728645722077,3.529,141.76,141.74,3.5294]
[1728645723382,3.5289,141.77,141.74,3.5294]
[1728645725581,10.77,141.78,141.74,3.5294]
[1728645725783,3.5294,141.75,141.73,3.5296]
[1728645725979,14.2994,141.75,141.73,3.5296]
[1728645726180,14.2994,141.75,141.72,3.5298]
[1728645726683,14.2994,141.75,141.71,10.89502]
[1728645726985,14.2994,141.75,141.72,14.2997]
[1728645727183,3.5294,141.75,141.72,14.2997]
[1728645728289,3.5294,141.75,141.73,3.5297]
[1728645729779,14.2992,141.76,141.73,3.5297]
[1728645732992,3.5292,141.76,141.73,10.77]
[1728645733292,3.5292,141.76,141.74,3.5294]
[1728645733492,3.5292,141.76,141.73,10.77]
[1728645734495,3.5292,141.76,141.73,14.2996]
[1728645736589,3.5292,141.76,141.73,3.5296]
[1728645742899,3.5292,141.76,141.74,3.5295]
[1728645751706,3.5292,141.76,141.71,10.89502]
[1728645752005,3.5292,141.76,141.73,3.5296]
[1728645754707,10.77,141.75,141.71,0.12502]
[1728645755300,3.5295,141.74,141.72,3.5299]
[1728645756704,10.77,141.75,141.71,0.12502]
[1728645756900,10.77,141.74,141.71,0.12502]
[1728645757105,10.77,141.75,141.71,0.12502]
[1728645757604,3.5296,141.74,141.71,3.65502]
[1728645757807,3.5296,141.74,141.71,0.12502]
[1728645758506,3.5296,141.74,141.72,3.5299]
[1728645758703,4.92,141.77,141.72,10.77]
[1728645758704,4.88,141.77,141.72,10.77]
[1728645758898,4.88,141.78,141.75,3.5291]
[1728645759411,4.88,141.78,141.74,3.5294]
[1728645759412,3.5287,141.77,141.74,3.5294]
[1728645762206,14.2987,141.77,141.74,3.5294]
[1728645763512,3.529,141.76,141.74,3.5294]
[1728645763909,10.77,141.76,141.72,3.5299]
[1728645764110,7.5702,141.79,141.72,3.5299]
[1728645764111,14.2994,141.75,141.72,3.5299]
[1728645764614,10.77,141.74,141.71,5.00502]